Cogmind - Beta 10.2 @@@ ROGUE MODE // 2021.01.26 @ 16:13:55 Player: WayneKnight Result: Self-destructed Performance ------------- Evolutions (3) 1500 Regions Visited (9) 1800 Robots Destroyed (126) 630 Value Destroyed (3621) 3621 Prototype IDs (8) 160 Alien Tech Used (0) 0 Bonus (788) 788 TOTAL SCORE: 8499 Bonus ------- Follower Combat Kills 788 Cogmind --------- Core Integrity 689/700 Matter 255/300 Energy 150/150 System Corruption 0% Temperature Cool (0) Movement Treading (180) Ox1 Location -7/Factory Parts ------- > --- POWER (1) -------- Micro Nuclear Core > --- PROPULSION (4) --- Light Treads Light Treads Light Treads Light Treads > --- UTILITY (6) ------ High-capacity Storage Unit High-capacity Storage Unit High-capacity Storage Unit Advanced Sensor Array Advanced Signal Interpreter Hacking Suite > --- WEAPON (2) ------- Enhanced Autogun Enhanced Autogun > --- INVENTORY (28) --- Light Treads Light Treads Light Treads Light Treads Improved Cesium-ion Thruster Improved Cesium-ion Thruster Improved Cesium-ion Thruster Improved Cesium-ion Thruster Large Storage Unit Advanced Sensor Array Hardened Light Armor Plating Improved Light Armor Plating Improved Light Armor Plating System Shield Enhanced Autogun Enhanced Autogun Enhanced Autogun Enhanced Autogun Flak Gun Slug Cannon Advanced EMP Blaster Proton Missile Launcher Rocket Launcher Rocket Launcher Chainsword Chainsword Chainsword Peak State ------------ > --- POWER ------------ Micro Nuclear Core > --- PROPULSION ------- Light Treads Light Treads Light Treads Light Treads > --- UTILITY ---------- High-capacity Storage Unit High-capacity Storage Unit High-capacity Storage Unit Advanced Sensor Array Advanced Signal Interpreter Improved Light Armor Plating > --- WEAPON ----------- Enhanced Autogun Enhanced Autogun > --- INVENTORY -------- Micro Nuclear Core Light Treads Light Treads Light Treads Improved Cesium-ion Thruster Improved Cesium-ion Thruster Improved Cesium-ion Thruster Improved Cesium-ion Thruster Large Storage Unit Advanced Sensor Array Hardened Light Armor Plating Improved Light Armor Plating Hacking Suite System Shield Enhanced Autogun Enhanced Autogun Enhanced Autogun Enhanced Autogun Flak Gun Slug Cannon Advanced EMP Blaster Proton Missile Launcher Rocket Launcher Rocket Launcher Chainsword Chainsword Chainsword [Rating: 37] Favorites ----------- Power Improved Ion Engine Engine Improved Ion Engine Power Core Micro Nuclear Core Propulsion Light Treads Treads Light Treads Leg Aluminum Leg Wheel Wheel Hover Unit Hover Unit Flight Unit Improved Cesium-ion Thruster Utility High-capacity Storage Unit Device Advanced Sensor Array Storage High-capacity Storage Unit Processor Advanced Signal Interpreter Hackware Hacking Suite Protection Hardened Light Armor Plating Weapon Heavy Assault Rifle Energy Gun Precision Beam Rifle Energy Cannon Advanced Beam Cannon Ballistic Gun Heavy Assault Rifle Launcher Rocket Launcher Impact Weapon Shock Maul Slashing Weapon Chainsword Build | -11 -10 -10 -9 -9 -9 -8 -8 -8 -7 ------- Run | Scr Mat Min Mat Min Exi Min Mat Sto Fac Slots Evolved 6 | . . . 2 . . . 2 . 2 Power . | . . . . . . . . . . Propulsion 2 | . . . . . . . 1 . 1 Utility 4 | . . . 2 . . . 1 . 1 Weapon . | . . . . . . . . . . Parts Attached 113 | . 9 1 29 7 2 2 46 12 5 Power 11 | . 1 . 1 1 . . 6 1 1 Engine 9 | . 1 . 1 1 . . 6 . . Core 2 | . . . . . . . . 1 1 Reactor . | . . . . . . . . . . Propulsion 31 | . 3 . 8 2 . 1 13 2 2 Treads 28 | . 2 . 8 2 . 1 12 1 2 Leg . | . . . . . . . . . . Wheel 1 | . 1 . . . . . . . . Hover 1 | . . . . . . . . 1 . Flight 1 | . . . . . . . 1 . . Utility 33 | . 2 1 10 3 2 1 10 2 2 Device 1 | . . . . . . . . 1 . Storage 11 | . 2 1 4 . 2 . 2 . . Processor 1 | . . . . . . . . 1 . Hackware 1 | . . . . . . . . . 1 Protection 19 | . . . 6 3 . 1 8 . 1 Artifact . | . . . . . . . . . . Weapon 38 | . 3 . 10 1 . . 17 7 . Energy Gun 2 | . . . 1 . . . 1 . . Energy Cannon 1 | . . . . . . . 1 . . Ballistic Gun 27 | . 3 . 8 1 . . 11 4 . Ballistic Cannon . | . . . . . . . . . . Launcher 4 | . . . 1 . . . 3 . . Special Weapon . | . . . . . . . . . . Impact Weapon 1 | . . . . . . . . 1 . Slashing Weapon 3 | . . . . . . . 1 2 . Piercing Weapon . | . . . . . . . . . . Special Melee Weapon . | . . . . . . . . . . Unidentified Prototypes 8 | . . . 1 . . . 6 1 . Parts Lost 17 | . . . 1 2 . . 13 . 1 Power 3 | . . . . . . . 2 . 1 Propulsion 6 | . . . . 1 . . 5 . . Utility 5 | . . . . 1 . . 4 . . Weapon 3 | . . . 1 . . . 2 . . Highest Loss Streak 6 | . . . 1 2 . . 6 . 1 Average Slot Usage (%) 98 | . 88 100 99 99 100 100 98 100 99 Engine 9 | . 14 14 11 11 11 11 8 . . Core 1 | . . . . . . . . 8 6 Treads 25 | . 27 28 22 21 22 22 26 27 30 Device 1 | . . . . . . . . 9 7 Storage 23 | . 17 28 22 22 22 22 29 27 23 Processor 1 | . . . . . . . . 9 7 Protection 13 | . . . 21 22 22 22 15 . 6 Energy Gun 1 | . 1 . 1 . . . 3 4 . Ballistic Gun 19 | . 26 28 19 22 22 22 14 12 15 Naked Turns . | . . . . . . . . . . Heaviest Build 131 | 11 45 61 78 71 87 87 131 130 112 Greatest Support 80 | 20 40 40 43 43 40 40 60 60 80 Greatest Overweight (x) 32 | . 1 1 1 1 2 2 32 2 1 Average Overweight (x) 1 | . . 1 1 1 1 2 1 1 1 Largest Inventory Capacity 34 | 6 16 18 24 18 20 20 34 34 28 Average Capacity 20 | 6 8 17 17 18 19 20 29 28 28 Most Carried 34 | 6 11 12 18 18 18 20 34 34 28 Average Carried 18 | 6 6 11 17 17 17 19 27 27 27 Final Capacity 34 | 6 16 18 18 18 20 20 34 28 28 Final Carried 34 | 6 11 12 18 17 18 20 34 28 27 Class Distribution -------------------- 47% | Mutant 25% | Hauler-Mutant 19% | Scavenger-Mutant 7% | Commander-Mutant Dominant Class ---------------- Mutant | -10/Materials Mutant | -10/Mines Mutant | -9/Materials Scavenger-Mutant | -9/Mines Hauler-Mutant | -9/Exiles Hauler-Mutant | -8/Mines Hauler-Mutant | -8/Materials Commander-Mutant | -8/Storage Hauler-Mutant | -7/Factory Resources | -11 -10 -10 -9 -9 -9 -8 -8 -8 -7 ----------- Run | Scr Mat Min Mat Min Exi Min Mat Sto Fac Matter Collected 3000 | 200 468 55 758 125 . 171 1019 168 36 Remotely . | . . . . . . . . . . Salvage Created 4401 | 99 803 198 1211 8 . 250 1705 15 112 Parts 265 | 2 53 17 78 3 . 20 79 3 10 Haulers Intercepted 3 | . 2 . . . . . 1 . . Recyclers Shooed 3 | . 1 . 1 . . . 1 . . Parts Field Recycled . | . . . . . . . . . . Retrieved Matter . | . . . . . . . . . . Parts Self-Destructed . | . . . . . . . . . . Prevented . | . . . . . . . . . . Kills | -11 -10 -10 -9 -9 -9 -8 -8 -8 -7 ------- Run | Scr Mat Min Mat Min Exi Min Mat Sto Fac Combat Hostiles Destroyed 99 | . 16 8 28 2 . 9 33 1 2 Guns 94 | . 16 7 28 2 . 9 29 1 2 AOE 5 | . . 1 . . . . 4 . . Classes Destroyed 13 | 1 6 . 3 1 . . 1 . 1 Worker 6 | . 1 2 . 2 . . 1 . . Builder 1 | . . . . . . . 1 . . Tunneler 3 | . . . 1 . . 1 1 . . Hauler 3 | . 2 . . . . . 1 . . Recycler 6 | 1 1 . 2 . . . 2 . . Operator 1 | . 1 . . . . . . . . Watcher 7 | . 3 . 4 . . . . . . Swarmer 30 | . 3 6 10 . . 6 4 1 . Grunt 47 | . 13 2 12 . . 2 18 . . Brawler 3 | . . . 1 . . 1 1 . . Sentry 16 | . . . 5 . . . 10 . 1 Demolisher 2 | . . . . 2 . . . . . Programmer 1 | . . . . . . . . . 1 Best Kill Streak 9 | 1 5 3 6 2 . 4 9 1 1 Combat Bots Only 6 | . 4 3 4 2 . 3 6 1 1 Max Kills in Single Turn 2 | 1 2 2 1 1 . 1 2 1 1 Gunslinging 1 | . 1 . . . . . 1 . . Exploded 1 | . . 1 . . . . 1 . . Melee . | . . . . . . . . . . Uniques/NPCs Destroyed . | . . . . . . . . . . Combat | -11 -10 -10 -9 -9 -9 -8 -8 -8 -7 -------- Run | Scr Mat Min Mat Min Exi Min Mat Sto Fac Damage Taken 4868 | . 393 139 1009 294 . 242 2488 236 67 Core 596 | . 100 30 76 37 . 66 214 62 11 Absorbed by Shields . | . . . . . . . . . . Core Remaining (%) 63 | 100 . 48 . . . 55 . 49 . Volleys Fired 302 | 6 63 7 84 5 . 19 106 7 5 Largest 2 | 2 2 2 2 2 . 2 2 2 2 Hottest 86 | 60 60 46 79 46 . 46 86 50 50 Shots Fired 583 | 12 126 14 158 10 . 38 201 14 10 Gun 573 | 12 126 14 157 10 . 38 192 14 10 Cannon . | . . . . . . . . . . Launcher 10 | . . . 1 . . . 9 . . Special . | . . . . . . . . . . Kinetic 517 | 6 122 14 133 10 . 38 170 14 10 Thermal 46 | . . . 24 . . . 22 . . Explosive 7 | . . . 1 . . . 6 . . Electromagnetic 13 | 6 4 . . . . . 3 . . Robot Hit Streak 16 | 6 14 7 11 10 . 9 16 3 4 Robot Miss Streak 4 | 1 4 1 4 1 . 2 3 4 2 Penetration Max . | . . . . . . . . . . Secondary Targets 9 | . 1 . 2 1 . 1 4 . . Max Gunslinging Chain 1 | . 1 . 1 1 . 1 1 . . Shots Hit Robots 406 | 9 86 8 116 7 . 25 143 7 5 Core Hits 184 | 2 31 9 44 3 . 13 77 1 4 Critical Hits 2 | . 1 . . . . . 1 . . Critical Kills 1 | . . . . . . . 1 . . Critical Parts Destroyed 1 | . 1 . . . . . . . . Melee Attacks 3 | . . . . . . . . 3 . Impact . | . . . . . . . . . . Slashing 3 | . . . . . . . . 3 . Piercing . | . . . . . . . . . . Sneak Attacks . | . . . . . . . . . . Combat Hostiles . | . . . . . . . . . . Follow-up Attacks . | . . . . . . . . . . Damage Inflicted 6985 | 87 1230 236 1784 101 . 351 2979 123 94 Guns 6149 | 87 1224 145 1747 73 . 349 2307 123 94 Cannons . | . . . . . . . . . . Explosions 638 | . . 27 . . . . 611 . . Melee . | . . . . . . . . . . Ramming 198 | . 6 64 37 28 . 2 61 . . Kinetic 5383 | 46 1200 145 1388 73 . 349 1965 123 94 Thermal 728 | . . 27 359 . . . 342 . . Explosive 484 | . . . . . . . 484 . . Electromagnetic 192 | 41 24 . . . . . 127 . . Impact . | . . . . . . . . . . Slashing . | . . . . . . . . . . Piercing . | . . . . . . . . . . Highest Corruption 3 | . . . . . . . 2 3 . Average Corruption 2 | . . . . . . . 2 2 . Corruption Purged . | . . . . . . . . . . Effects 44 | . . . . . . . 28 16 . Message Errors 11 | . . . . . . . 8 3 . Matter Fused 2 | . . . . . . . . 2 . Heat Flow Errors 8 | . . . . . . . 4 4 . Energy Discharges 9 | . . . . . . . 7 2 . Data Loss (minor) 8 | . . . . . . . 4 4 . Targeting Errors 5 | . . . . . . . 4 1 . Weapon Failures 1 | . . . . . . . 1 . . Overload Shots . | . . . . . . . . . . Overflow Damage 17 | . . . . . . . 17 . . Projectiles . | . . . . . . . . . . Explosions 17 | . . . . . . . 17 . . Melee . | . . . . . . . . . . Knockbacks 3 | . . 2 . . . . 1 . . Impact 3 | . . 2 . . . . 1 . . Kinetic . | . . . . . . . . . . Secondary . | . . . . . . . . . . Self-Inflicted Damage 141 | . . 25 . . . . 116 . . Shots 4 | . . 1 . . . . 3 . . Rammed 15 | . 1 8 2 . . 1 3 . . Targets Rammed 23 | . 2 10 3 2 . 1 5 . . Kicked . | . . . . . . . . . . Crushed 8 | . 1 2 1 2 . . 2 . . Highest Temperature 411 | . 6 8 411 22 . 160 324 244 11 Average Temperature 77 | . 2 6 85 13 . 47 88 70 7 Received Heat Transfer 1719 | . 168 21 270 9 . 54 1152 27 18 Effects 10 | . . . 8 . . . 2 . . Shutdowns 2 | . . . 2 . . . . . . Energy Bleed 1 | . . . . . . . 1 . . Interference 4 | . . . 3 . . . 1 . . Matter Decay 2 | . . . 2 . . . . . . Short Circuit 1 | . . . 1 . . . . . . Siege Activations . | . . . . . . . . . . Robots Corrupted . | . . . . . . . . . . Combat Hostiles . | . . . . . . . . . . Parts Fried . | . . . . . . . . . . Impact Corruptions . | . . . . . . . . . . Robots Melted . | . . . . . . . . . . Combat Hostiles . | . . . . . . . . . . Parts Melted 2 | . . . 1 . . . 1 . . Heat Transferred 1530 | . . 50 740 . . . 740 . . Parts Sabotaged . | . . . . . . . . . . Parts Stolen . | . . . . . . . . . . Parts Stripped . | . . . . . . . . . . Power Chain Reactions . | . . . . . . . . . . Missiles Intercepted . | . . . . . . . . . . Alert | -11 -10 -10 -9 -9 -9 -8 -8 -8 -7 ------- Run | Scr Mat Min Mat Min Exi Min Mat Sto Fac Peak Influence 492 | 5 184 336 253 83 . 125 304 492 242 Initial 223 | . 3 71 . 68 . . . 113 223 Average 109 | . 81 130 109 32 . 35 141 187 141 Maximum Alert Level 2 | . . 1 1 . . . 1 2 1 Low Security (%) 81 | 100 100 72 87 100 . 100 61 63 64 Level 1 18 | . . 27 12 . . . 38 34 35 Level 2 . | . . . . . . . . 2 . Level 3 . | . . . . . . . . . . Level 4 . | . . . . . . . . . . Level 5 . | . . . . . . . . . . High Security . | . . . . . . . . . . Max Security . | . . . . . . . . . . Squads Dispatched 19 | . 6 . 4 . . . 3 3 3 Investigation 6 | . 2 . 1 . . . . 1 2 Extermination 1 | . . . . . . . . . 1 Reinforcement 11 | . 4 . 3 . . . 3 1 . Assault . | . . . . . . . . . . Garrison 1 | . . . . . . . . 1 . Intercept . | . . . . . . . . . . Construction Impeded . | . . . . . . . . . . Haulers Reinforced . | . . . . . . . . . . Stealth | -11 -10 -10 -9 -9 -9 -8 -8 -8 -7 --------- Run | Scr Mat Min Mat Min Exi Min Mat Sto Fac Distress Signals 15 | . 1 . 6 . . . 6 1 1 Communications Jammed . | . . . . . . . . . . Distress Signals . | . . . . . . . . . . Times Spotted 176 | . 29 10 47 4 . 10 60 13 3 Peak Tracking Total 6 | . 5 3 6 2 . 3 6 4 2 Tactical Retreats 9 | . . . 3 . . 1 5 . . Traps | -11 -10 -10 -9 -9 -9 -8 -8 -8 -7 ------- Run | Scr Mat Min Mat Min Exi Min Mat Sto Fac Traps Triggered 6 | . . . 2 . . . . 3 1 Indirectly . | . . . . . . . . . . Trap Hack Attempts . | . . . . . . . . . . Triggered . | . . . . . . . . . . Disarmed . | . . . . . . . . . . Reprogrammed . | . . . . . . . . . . Reused . | . . . . . . . . . . Traps Extracted . | . . . . . . . . . . Installed . | . . . . . . . . . . Triggered . | . . . . . . . . . . Machines | -11 -10 -10 -9 -9 -9 -8 -8 -8 -7 ---------- Run | Scr Mat Min Mat Min Exi Min Mat Sto Fac Machines Disabled 20 | . . 5 2 . . 1 1 2 9 Max in Single Turn 5 | . . 5 . . . 1 1 1 . Garrison Access 1 | . . . . . . . 1 . . Machines Sabotaged . | . . . . . . . . . . Garrisons Compromised . | . . . . . . . . . . Overloaded Fab Kills . | . . . . . . . . . . Fab Network Shutdowns . | . . . . . . . . . . Hacking | -11 -10 -10 -9 -9 -9 -8 -8 -8 -7 --------- Run | Scr Mat Min Mat Min Exi Min Mat Sto Fac Machines Accessed 32 | . 7 . 9 . 1 . 9 3 3 Terminals 23 | . 4 . 6 . . . 8 3 2 Fabricators . | . . . . . . . . . . Repair Stations 3 | . 1 . 2 . . . . . . Recycling Units 2 | . 2 . . . . . . . . Scanalyzers 1 | . . . 1 . . . . . . Garrison Access 2 | . . . . . . . 1 . 1 Total Hacks 94 | . 24 . 30 . 1 . 25 7 7 Successful 54 | . 13 . 21 . 1 . 12 5 2 Failed 40 | . 11 . 9 . . . 13 2 5 Catastrophic 2 | . . . . . . . 1 1 . Database Lockouts . | . . . . . . . . . . Manual 58 | . 17 . 15 . . . 18 6 2 Terminals 70 | . 19 . 19 . . . 21 7 4 Fabricators . | . . . . . . . . . . Repair Stations 10 | . 2 . 8 . . . . . . Recycling Units 3 | . 3 . . . . . . . . Scanalyzers 3 | . . . 3 . . . . . . Garrison Access 7 | . . . . . . . 4 . 3 Terminal Hacks 20 | . 5 . 4 . 1 . 7 2 1 Record 1 | . . . . . 1 . . . . Robot Analysis 6 | . 4 . . . . . 2 . . Open Door 1 | . . . . . . . . 1 . Branch Access Points 1 | . . . 1 . . . . . . Alert Level 2 | . . . . . . . 2 . . Unreport Threat 3 | . . . 1 . . . 2 . . Locate Traps 4 | . 1 . 1 . . . 1 . 1 Hauler Manifests 1 | . . . 1 . . . . . . Zone Layout 1 | . . . . . . . . 1 . Fabricator Hacks . | . . . . . . . . . . Repair Station Hacks 8 | . 2 . 6 . . . . . . Scan Component 4 | . 1 . 3 . . . . . . Repair 4 | . 1 . 3 . . . . . . Recycling Unit Hacks . | . . . . . . . . . . Scanalyzer 3 | . . . 3 . . . . . . Insert Component 1 | . . . 1 . . . . . . Analyze 2 | . . . 2 . . . . . . Garrison Access Hacks 1 | . . . . . . . 1 . . Seal Access 1 | . . . . . . . 1 . . Unauthorized Hacks 22 | . 6 . 8 . . . 4 3 1 Terminals 21 | . 5 . 8 . . . 4 3 1 Track 9 | . 3 . 3 . . . 2 1 . Assimilate 3 | . . . 2 . . . 1 . . Botnet 7 | . 2 . 2 . . . 1 1 1 Operators 2 | . . . 1 . . . . 1 . Fabricators . | . . . . . . . . . . Repair Stations . | . . . . . . . . . . Recycling Units 1 | . 1 . . . . . . . . Tunnel 1 | . 1 . . . . . . . . Scanalyzers . | . . . . . . . . . . Garrison Access . | . . . . . . . . . . Data Cores Recovered 1 | . . . 1 . . . . . . Used . | . . . . . . . . . . Hacking Detections 29 | . 6 . 9 . . . 9 2 3 Full Trace Events 2 | . 1 . . . . . . . 1 Feedback Events . | . . . . . . . . . . Feedback Blocked . | . . . . . . . . . . Robot Schematics Acquired . | . . . . . . . . . . Robots Built . | . . . . . . . . . . Matter . | . . . . . . . . . . Time . | . . . . . . . . . . Total Robot Build Rating . | . . . . . . . . . . Part Schematics Acquired 1 | . . . 1 . . . . . . Parts Built . | . . . . . . . . . . Matter . | . . . . . . . . . . Time . | . . . . . . . . . . Total Part Build Rating . | . . . . . . . . . . Parts Repaired 4 | . 1 . 3 . . . . . . Time 116 | . 32 . 84 . . . . . . Parts Recycled . | . . . . . . . . . . Recycled Matter . | . . . . . . . . . . Retrieved Matter . | . . . . . . . . . . Retrieved Components . | . . . . . . . . . . Parts Scanalyzed 1 | . . . 1 . . . . . . Part Schematics Acquired 1 | . . . 1 . . . . . . Parts Damaged . | . . . . . . . . . . Bothacking | -11 -10 -10 -9 -9 -9 -8 -8 -8 -7 ------------ Run | Scr Mat Min Mat Min Exi Min Mat Sto Fac Used RIF Installer . | . . . . . . . . . . Robots Hacked . | . . . . . . . . . . Non-combat . | . . . . . . . . . . Combat . | . . . . . . . . . . Robot Hacks Applied . | . . . . . . . . . . Relay Couplers Released . | . . . . . . . . . . Robots Rewired . | . . . . . . . . . . Allies Hacked . | . . . . . . . . . . Hacks Repelled . | . . . . . . . . . . Allies | -11 -10 -10 -9 -9 -9 -8 -8 -8 -7 -------- Run | Scr Mat Min Mat Min Exi Min Mat Sto Fac Total Allies 19 | . . 5 1 1 . . 1 11 . Largest Group 10 | . . 5 4 1 . . 1 10 4 Highest-Rated Group 256 | . . 85 69 31 . . 10 256 160 Highest-Rated Ally 99 | . . 31 31 31 . . 10 99 99 Total Orders . | . . . . . . . . . . Ally Attacks 183 | . . 15 27 5 . . . 121 15 Total Damage 2678 | . . 213 571 40 . . . 1623 231 Kills 32 | . . 2 7 1 . . . 21 1 Allies Corrupted . | . . . . . . . . . . Allies Melted . | . . . . . . . . . . Intel | -11 -10 -10 -9 -9 -9 -8 -8 -8 -7 ------- Run | Scr Mat Min Mat Min Exi Min Mat Sto Fac Robot Analysis Total 6 | . 4 . . . . . 2 . . Derelict Logs Recovered 2 | . . 1 . 1 . . . . . Drone Launches . | . . . . . . . . . . Drone Recoveries . | . . . . . . . . . . Exploration | -11 -10 -10 -9 -9 -9 -8 -8 -8 -7 ------------- Run | Scr Mat Min Mat Min Exi Min Mat Sto Fac Turns Passed 16799 | 18 2180 1429 4559 1445 478 1215 3036 1302 1137 Spaces Moved 5818 | 1 775 770 1124 575 251 576 1082 352 312 Core 1 | . . . . . . . 1 . . Treads 5816 | . 775 770 1124 575 251 576 1081 352 312 Legs 1 | 1 . . . . . . . . . Wheels . | . . . . . . . . . . Hover . | . . . . . . . . . . Flight . | . . . . . . . . . . Fastest Speed 120 | 120 160 180 180 180 180 200 180 180 180 Average Speed 183 | 120 163 180 180 180 190 200 197 180 180 Slowest Speed 1650 | 120 180 180 180 180 200 200 1650 200 180 Overloaded Moves . | . . . . . . . . . . Propulsion Burnouts . | . . . . . . . . . . Robots Hopped . | . . . . . . . . . . Cave-ins Triggered . | . . . . . . . . . . Exploration Rate (%) 69 | 2 97 99 86 99 58 99 92 55 8 Regions Visited 9 Branch Regions 5 Pre-discovered Areas 3 | . 1 . . 1 1 . . . . Known Exits Taken 3 | . . . 1 . . . 1 1 . Unknown Exits Taken 6 | 1 1 1 . 1 1 1 . . . Scrap Searched 6 | . . 2 . 3 . 1 . . . Spaces Dug 6 | . . . 6 . . . . . . Terrain Destroyed 53 | . . 26 6 . . . 21 . . Melee . | . . . . . . . . . . Projectile . | . . . . . . . . . . AOE 53 | . . 26 6 . . . 21 . . Terrain Rammed . | . . . . . . . . . . Walls Destroyed . | . . . . . . . . . . Machines Disabled . | . . . . . . . . . . Actions | -11 -10 -10 -9 -9 -9 -8 -8 -8 -7 --------- Run | Scr Mat Min Mat Min Exi Min Mat Sto Fac Total 11385 | 6 1559 791 3509 979 253 604 1788 1016 880 Wait 4977 | . 694 4 2238 381 . 5 484 614 557 Move 5809 | . 774 769 1123 574 250 575 1081 351 312 Hop . | . . . . . . . . . . Pick Up 70 | . 9 . 11 3 . 1 33 12 1 Fast Attach 22 | . 3 . 4 . . . 12 3 . Attach 22 | . . . 3 2 . . 12 2 3 Detach 6 | . . . 1 . . . 4 1 . Swap 69 | . 6 1 22 5 2 2 22 7 2 Drop 81 | . 8 . 20 7 1 1 29 15 . Fire 302 | 6 63 7 84 5 . 19 106 7 5 Melee 3 | . . . . . . . . 3 . Ram . | . . . . . . . . . . Kick . | . . . . . . . . . . Crush 23 | . 2 10 3 2 . 1 5 . . Escape Stasis . | . . . . . . . . . . Rewire 1 | . . . . . . . . 1 . Trap . | . . . . . . . . . . Miscellaneous . | . . . . . . . . . . Route ------- -11/Scrapyard -10/Materials (discovered 5 exits: *Mat x3 / [*Min x2]) -10/Mines (discovered 2 exits: *Mat x2) -9/Materials (discovered 4 exits: *Mat x2 / *Min x2) -9/Mines (discovered 3 exits: *Mat x2 / *Exi) -9/Exiles -8/Mines (discovered 2 exits: *Mat x2) -8/Materials (discovered 5 exits: *Fac x3 / *Sto x2) -8/Storage -7/Factory History --------- Turn | Location | Event 19 | -11/Scrapyard | Discovered new exit (range 0) 19 | -11/Scrapyard | Entered Materials 161 | -10/Materials | Discovered new exit (range 15) 309 | -10/Materials | Build established: Mutant 939 | -10/Materials | Discovered new exit (range 8) 971 | -10/Materials | Discovered new exit (range 3) 1374 | -10/Materials | Discovered new exit (range 4) 1502 | -10/Materials | Repaired Hvy. Assault Rifle 1554 | -10/Materials | Discovered new exit (range 8) 2199 | -10/Materials | Entered Mines 2268 | -10/Mines | Discovered new exit (range 9) 2628 | -10/Mines | Discovered new exit (range 10) 2948 | -10/Mines | Assisted by bots powering up and referring to "LRC-V3" 2990 | -10/Mines | Core integrity fell below 50% 3247 | -10/Mines | Found a hidden stash of uninstalled traps 3628 | -10/Mines | Entered Materials 3628 | -9/Materials | Accompanied by 4 allies 3628 | -9/Materials | Evolved 2 slots: Utility x2 3629 | -9/Materials | Discovered new exit (range 15) 3633 | -9/Materials | Led the pair of lost Derelicts to an unsafe place 4421 | -9/Materials | Discovered new exit (range 16) 4476 | -9/Materials | Repaired Lgt. Treads 4509 | -9/Materials | Repaired Hvy. Assault Rifle 5182 | -9/Materials | Repaired Hcp. Storage Unit 5252 | -9/Materials | Discovered new exit (range 10) 5504 | -9/Materials | Build established: Scavenger-Mutant 5958 | -9/Materials | Build established: Mutant 6911 | -9/Materials | Identified exit to Mines 8187 | -9/Materials | Entered Mines 8306 | -9/Mines | Deemed a non-threat by the Exiles lab entrance 8308 | -9/Mines | Discovered new exit (range 5) 8373 | -9/Mines | A weapon hastily lodged in a ceiling crevice suddenly fell to the ground 8412 | -9/Mines | Joined a pair of Derelicts in attacking an 0b10 outpost 8421 | -9/Mines | Discovered new exit (range 13) 8526 | -9/Mines | Learned location of Zion (-6) 8655 | -9/Mines | Assembled infested the area 8725 | -9/Mines | Build established: Scavenger-Mutant 9205 | -9/Mines | Received a Rocket Launcher from a helpful Derelict 9235 | -9/Mines | Discovered new exit (range 9) 9267 | -9/Mines | Received a Mining Laser from a helpful Derelict 9632 | -9/Mines | Entered Exiles 9676 | -9/Exiles | Met 8R-AWN 9706 | -9/Exiles | Met EX-HEX 9785 | -9/Exiles | Met EX-DEC 10084 | -9/Exiles | Discovered new exit (range 14) 10110 | -9/Exiles | Entered Mines 10165 | -8/Mines | Build established: Hauler-Mutant 10704 | -8/Mines | Discovered new exit (range 8) 10750 | -8/Mines | Discovered new exit (range 4) 11102 | -8/Mines | Build established: Scavenger-Mutant 11325 | -8/Mines | Entered Materials 11325 | -8/Materials | Evolved 2 slots: Propulsion x1, Utility x1 11326 | -8/Materials | Identified exit to Storage 11822 | -8/Materials | Discovered exit to Storage (range 15) 12112 | -8/Materials | Discovered new exit (range 3) 12194 | -8/Materials | Build established: Hauler-Mutant 12863 | -8/Materials | Lost 6 parts (3n2u1w) 13054 | -8/Materials | Lost 3 parts (1p1u1w) 13066 | -8/Materials | Discovered new exit (range 15) 13504 | -8/Materials | Lost 3 parts (1p2n) 13897 | -8/Materials | Discovered new exit (range 5) 14361 | -8/Materials | Entered Storage 14398 | -8/Storage | Assisted by bots powering up and referring to "LRC-V3" 14654 | -8/Storage | Build established: Commander-Mutant 15145 | -8/Storage | Met 01-MTF 15607 | -8/Storage | Garrison activated, responded to threat 15620 | -8/Storage | Discovered new exit (range 6) 15623 | -8/Storage | Core integrity fell below 50% 15645 | -8/Storage | Identified exit to Factory 15663 | -8/Storage | Entered Factory 15663 | -7/Factory | Accompanied by 4 allies (01-MTF) 15663 | -7/Factory | Evolved 2 slots: Propulsion x1, Utility x1 15668 | -7/Factory | 01-MTF left 15922 | -7/Factory | Build established: Hauler-Mutant 16800 | -7/Factory | Self-destructed Last Messages --------------- 16532_ P-60 Hacker fails to hack Soldier 3a. 16536_ P-60 Hacker destroyed. 16555_ W-25 Informer sends out distress signal. 16590_ K-01 Serf cleans the Neutrino Reactor. 16593_ Mic. Nuclear Core destroyed. 16593_ Y-54 Guardian destroyed. 16596_ K-01 Serf collects debris. 16606_ Connecting with Fabricator... 16645_ K-01 Serf cleans the Neutrino Reactor. 16746_ Connecting with Terminal... >>Traps(Locate) Found 10 traps in 2 arrays: 4x Ambush Trap 6x Chute Trap Map updated. 16758_ T-07 Excavator is excavating. 16770_ U-05 Engineer lays Concrete. 16793_ Connecting with Garrison Access... 16795_ ALERT: Suspicious activity at Garrison Access F003. Dispatching Investigation squad. Map ----- +----------------------------------------------------+ | " #???????????????????????????# #???????????? | | " #???????????????????????????# #???????????? | | " #???????????????????????????# #???????????? | | " #???????????????????????????# #???????????? | | " #??????????????????###??????# #???????????? | | #?????????????????? ??????# #???????????? | | ####?????????????????? ??????# #???????????? | | #?????????????????????# #??????# #???????????? | | ####??????????????????# #??????# #???????????? | | +??????????????????# #?###### #???????????? | | ####???????????????#### ### ## ##??????????? | | #??????????????????# T +??????????? | | #??????????????????# #########??????????? | | ##########+######### ###########???????????? | | ^ ??????????? | | ^^ ?^^???????? | | ^ """" "???????????? | | ^^ """??????????????? | | """??????^???????? | | ###+#############+######+#####^ ??????????? | | ??????????????????????# #? """" "???????????? | | ??????????????????????# " #?? """"?????????????? | | ??????????????????????# " #?? ""???????????????? | | ??????????????????????# " #??? ???????????????? | | ??????????????????????# " #???? ???????????????? | | ??????????????????????# g@" +????????????????????? | | ??????????????????????#""g" #????????????????????? | | ??????????????????????#"" " #????????????????????? | | ??????????????????????#G " #????????????????????? | | ??????????????????????#"" " #????????????????????? | | ??????????????????????#"" #????????????????????? | | ??????????????????????# #????????????????????? | | ??????????????????????#######????????????????????? | | ?????????????????????????????????????????????????? | | ?????????????????????????????????????????????????? | | ?????????????????????????????????????????????????? | | ?????????????????????????????????????????????????? | | ????????????????????w????????????????????????????? | | ?????????????????????????????????????????????????? | | ?????????????????????????????????????????????????? | | ?????????????????????????????????????????????????? | | ?????????????????????????????????????????????????? | | ?????????????????????????????????????????????????? | | ?????????????????????????????????????????????????? | | ?????????????????????????????????????????????????? | | ?????????????????????????????????????????????????? | | ?????????????????????????????????????????????????? | | ?????????????????????????????????????????????????? | | ?????????????????????????????????????????????????? | | ?????????????????????????????????????????????????? | +----------------------------------------------------+ Best States ------------- Heat Dissipation 34 Energy Generation 16 Energy Capacity 290 Matter Stores 300 Matter Capacity 300 Sight Range 16 Robot Scan Range 16 Terrain Scan Density 10 Armor Coverage 525 Resistance: KI 20 Core Shielding 20 Evasion (%) 40 Recoil Reduction 4 Offensive Hacking 10 Item Schematics ----------------- Hacking Suite | -9/Materials | Scanalyzed Robot Schematics ------------------ None Fabricated ------------ Nothing Alien Tech Used ----------------- None Achievements -------------- None Challenges ------------ None Game ------ Seed DisruptionWardroneGravjet Manual? 0 Play Time 00:56:42 Cumulative 248.1 hours Start 2021.01.25 @ 21:55:21 End 2021.01.26 @ 16:13:55 Sessions 3 Manual Loads 0 Difficulty Rogue Special Mode None Game No. 175 Rogue 175 Adventurer 0 Explorer 0 Win Type - Total 6 Types 6/0/0/0/0/0/0/0/0 Lore% 56 Gallery% 65 Achievement% 49 Wizard Run 0 Options --------- ASCII 1 Keyboard 1 Movement Arrows Keybinds 0 Fullscreen 1 Font 24/Proggy Map View 76x50 Tactical HUD 1 Map Filters NONE Filters NONE Steam 1 RUN: 0ae098f6-6d23-44ed-8a1f-1bc1fd689e6f